bitfinex-derivatives/quotes_SOLF0:USTF0_20250409
["timestamp","ask_amount","ask_price","bid_price","bid_amount"]
[1744206594035,0.06830257,105.61,105.59,0.06181486]
[1744206594440,9.478,105.6,105.59,0.06181486]
[1744206595136,50.27765668,105.6,105.53,359.0]
[1744206595441,54.92755668,105.6,105.53,359.0]
[1744206595640,50.27765668,105.62,105.53,359.0]
[1744206596140,4.6499,105.63,105.53,359.0]
[1744206596141,14.1259,105.63,105.54,50.27765668]
[1744206596339,0.06237166,105.59,105.56,0.06676624]
[1744206596541,0.06237166,105.59,105.58,9.4793]
[1744206596935,7.166e-05,105.59,105.58,9.4793]
[1744206597245,7.166e-05,105.59,105.58,428.23695668]
[1744206597543,262.87377896,105.65,105.64,9.4744]
[1744206597847,178.11277896,105.65,105.64,494.15205668]
[1744206598144,178.11277896,105.65,105.64,65.94]
[1744206599040,524.42926879,105.67,105.64,424.94]
[1744206599236,645.78084374,105.69,105.64,475.21765668]
[1744206599438,645.78084374,105.69,105.64,409.27765668]
[1744206600037,645.78084374,105.69,105.66,50.27765668]
[1744206600237,645.78084374,105.69,105.66,409.27765668]
[1744206600431,0.07250521,105.68,105.66,359.0]
[1744206601046,0.07250521,105.68,105.66,409.27765668]
[1744206601245,65.9,105.79,105.66,418.73765668]
[1744206601445,9.4686,105.71,105.66,359.0]
[1744206601748,116.17765668,105.7,105.53,65.9]
[1744206601945,50.27765668,105.68,105.57,50.27765668]
[1744206602139,50.27765668,105.68,105.57,359.0]
[1744206602440,50.27765668,105.66,105.57,359.0]
[1744206602641,50.27765668,105.66,105.61,0.06762774]
[1744206602841,4.7972,105.69,105.61,0.06762774]
[1744206602842,50.27765668,105.64,105.61,0.06762774]
[1744206603047,9.4762,105.62,105.61,2.774e-05]
[1744206603344,50.27765668,105.67,105.56,409.27765668]
[1744206603752,55.07485668,105.69,105.58,50.27765668]
[1744206604249,0.06963023,105.65,105.62,0.06387405]
[1744206604548,65.94963023,105.65,105.62,0.06387405]
[1744206604744,566.20963023,105.65,105.56,359.0]
[1744206605044,616.41765668,105.65,105.62,0.06874397]
[1744206605246,50.27765668,105.63,105.54,359.0]
[1744206605443,13.3763437,105.62,105.54,359.0]
[1744206605643,9.4812,105.57,105.54,359.0]
[1744206605845,0.06688863,105.59,105.54,359.0]
[1744206606045,0.06688863,105.59,105.57,0.05991424]
[1744206606348,0.06126772,105.58,105.57,359.05991424]
[1744206606537,6.772e-05,105.58,105.57,359.05991424]
[1744206606738,9.4746,105.64,105.57,418.81757092]
[1744206606952,54.70835668,105.66,105.57,359.05991424]
[1744206607148,54.70835668,105.66,105.57,359.0]
[1744206607447,4.4307,105.66,105.57,359.0]
[1744206607647,4.4307,105.66,105.6,0.06151695]
[1744206608239,9.4766,105.62,105.6,0.06151695]
[1744206608435,4.4307,105.66,105.6,0.06151695]
[1744206608650,65.88,105.67,105.6,0.06151695]
[1744206608651,4.4639,105.68,105.61,116.15765668]
[1744206608851,4.4186,105.69,105.63,50.27765668]
[1744206609151,54.69625668,105.69,105.65,0.07293011]
[1744206609338,65.88,105.68,105.65,0.07293011]
[1744206609952,4.4186,105.69,105.65,0.07293011]
[1744206610250,67.52733728,105.77,105.65,409.35058679]
[1744206610462,9.4669,105.73,105.67,50.27765668]
[1744206610640,13.6693,105.77,105.69,50.27765668]
[1744206610951,13.6693,105.77,105.71,50.27765668]
[1744206610952,9.0311,105.77,105.71,50.27765668]
[1744206611146,9.0311,105.77,105.7,0.0632101]
[1744206611349,65.88,105.76,105.69,359.0]
[1744206611542,65.88,105.76,105.72,0.06174883]
[1744206611943,9.4663,105.73,105.72,0.06174883]
[1744206612649,9.0311,105.77,105.72,0.06174883]
[1744206613236,9.0311,105.77,105.72,9.52844883]
[1744206613439,4.6382,105.79,105.72,50.33940551]
[1744206613652,9.4639,105.76,105.72,50.27765668]
[1744206613961,9.4639,105.76,105.74,0.06593164]
[1744206614354,9.4645,105.75,105.74,0.06593164]
[1744206614944,9.4645,105.75,105.74,3.164e-05]
[1744206615252,9.4676,105.72,105.69,359.0]
[1744206615456,8.9614,105.77,105.7,50.27765668]
[1744206615645,8.9614,105.77,105.7,409.27765668]
[1744206615849,50.27765668,105.75,105.65,359.0]
[1744206616149,50.27765668,105.75,105.61,71.16581806]
[1744206616150,50.27765668,105.71,105.61,359.0]
[1744206616345,50.27765668,105.71,105.57,541.0]
[1744206616346,50.27765668,105.67,105.57,359.0]
[1744206616650,50.27765668,105.61,105.52,409.27765668]
[1744206616849,9.2703,105.6,105.5,101.84493765]
[1744206617055,9.4803,105.58,105.52,50.27765668]
[1744206617247,9.2703,105.6,105.52,50.27765668]
[1744206617545,0.06857236,105.56,105.54,0.06429985]
[1744206617748,4.7453,105.66,105.55,600.45531336]
[1744206617941,4.7453,105.66,105.57,50.27765668]
[1744206618140,4.5042,105.65,105.56,50.27765668]
[1744206618342,50.27765668,105.64,105.56,359.0]
[1744206618543,13.9781,105.65,105.57,50.27765668]
[1744206618747,4.5042,105.65,105.59,50.27765668]
[1744206618946,0.07193339,105.62,105.6,7.982e-05]
[1744206619155,9.4776,105.61,105.6,7.982e-05]
[1744206619354,100.55531336,105.61,105.47,359.0]
[1744206619548,72.0,105.6,105.47,359.0]
[1744206619743,9.4856,105.52,105.47,359.0]
[1744206619954,50.27765668,105.55,105.47,359.0]
[1744206620142,9.4857,105.52,105.47,359.0]
[1744206620349,122.27765668,105.55,105.47,359.0]
[1744206620550,0.06365481,105.51,105.48,0.06835015]
[1744206620952,0.06365481,105.51,105.47,409.27765668]
[1744206621147,0.06365481,105.51,105.49,50.27765668]
[1744206621449,0.06365481,105.51,105.49,122.27765668]
[1744206621758,0.06365481,105.51,105.49,72.0]
[1744206621953,0.06365481,105.51,105.49,481.27765668]
[1744206622352,0.06365481,105.51,105.49,359.0]
[1744206623959,0.06365481,105.51,105.49,409.27765668]
[1744206625160,50.27765668,105.66,105.5,624.31950083]
[1744206625370,9.0864,105.64,105.57,50.27765668]
[1744206625550,4.6397,105.67,105.61,50.27765668]
[1744206626254,0.07046081,105.65,105.63,50.34179724]
[1744206626651,0.07046081,105.65,105.64,62.0]
[1744206626853,4.6547,105.71,105.64,62.0]
[1744206626854,4.6547,105.71,105.64,421.0]
[1744206627050,4.8039,105.73,105.7,50.27765668]
[1744206627260,1.89143181,105.74,105.7,50.27765668]
[1744206627557,1.89143181,105.74,105.66,50.27765668]
[1744206627761,50.27765668,105.73,105.63,72.04]
[1744206627953,76.6597,105.72,105.62,50.27765668]
[1744206628149,0.02295806,105.69,105.67,0.064914]
[1744206629265,5.806e-05,105.69,105.68,50.27765668]
[1744206629564,1.89143181,105.74,105.68,409.27765668]
[1744206629857,9.4664,105.73,105.68,359.0]
[1744206630055,1.89143181,105.74,105.69,50.27765668]
[1744206630461,1.89143181,105.74,105.67,72.02]
[1744206630656,1.89143181,105.74,105.71,50.27765668]
[1744206631458,1.89143181,105.74,105.7,0.06246618]
[1744206631659,1.89143181,105.74,105.71,9.4676]
[1744206631967,1.89143181,105.74,105.7,0.06246618]
[1744206632168,9.4665,105.73,105.7,0.06246618]
[1744206632368,1.89143181,105.74,105.7,0.06246618]
[1744206632767,9.5123,105.78,105.7,0.06246618]
[1744206632959,50.27765668,105.77,105.7,0.06246618]
[1744206633160,9.5123,105.78,105.67,409.27765668]
[1744206633364,50.27765668,105.74,105.67,359.0]
[1744206633671,9.4701,105.69,105.63,359.0]
[1744206633863,50.27765668,105.72,105.63,359.0]
[1744206634067,54.71505668,105.72,105.63,359.0]
[1744206634369,9.2586,105.71,105.63,359.0]
[1744206634763,9.4717,105.67,105.59,50.27765668]
[1744206634972,0.06279224,105.69,105.61,50.27765668]
[1744206635167,9.2586,105.71,105.63,50.27765668]
[1744206635368,9.2586,105.71,105.63,409.27765668]
[1744206635569,9.2586,105.71,105.63,359.0]
[1744206635765,50.27765668,105.7,105.63,359.0]
[1744206635967,0.07130673,105.68,105.66,0.06451696]
[1744206636163,9.4729,105.66,105.58,483.41765668]
[1744206636366,0.07130673,105.68,105.6,50.27765668]
[1744206636672,9.2586,105.71,105.62,50.27765668]
[1744206636867,9.4713,105.68,105.62,50.27765668]
[1744206637072,9.2586,105.71,105.66,50.27765668]
[1744206637274,1.89089533,105.77,105.68,50.27765668]
[1744206637568,0.06916232,105.7,105.68,409.27765668]
[1744206637776,9.1804,105.76,105.7,50.27765668]
[1744206637966,4.4976,105.76,105.71,0.06639295]
[1744206638975,0.06864592,105.75,105.74,50.27765668]
[1744206639374,4.8644,105.8,105.74,409.27765668]
[1744206639575,52.44160914,105.81,105.74,409.27765668]
[1744206639875,52.44160914,105.81,105.74,359.0]
[1744206640773,0.06445164,105.79,105.76,0.06435667]
[1744206641568,9.4627,105.77,105.76,0.06435667]
[1744206641765,50.27765668,105.76,105.66,409.27765668]
[1744206641967,50.27765668,105.74,105.66,359.0]
[1744206642169,9.7397,105.75,105.66,359.0]
[1744206642672,9.4696,105.7,105.66,359.0]
[1744206642868,0.07175199,105.72,105.69,0.06092873]
[1744206643263,126.49765668,105.74,105.63,50.27765668]
[1744206643565,50.34600258,105.72,105.63,50.27765668]
[1744206643772,50.27765668,105.72,105.62,435.22]
[1744206644071,50.27765668,105.73,105.62,435.22]
[1744206644374,50.27765668,105.67,105.58,461.39387429]
[1744206644568,9.3967,105.66,105.58,511.67153097]
[1744206644869,4.8788,105.66,105.61,0.06130956]
[1744206645062,554.55555668,105.74,105.64,50.27765668]
[1744206645268,9.4709,105.68,105.64,50.27765668]
[1744206645462,0.06032536,105.7,105.64,50.27765668]
[1744206645659,4.5021,105.73,105.65,0.06317578]
[1744206645863,0.06673036,105.68,105.65,0.06317578]
[1744206646070,0.06673036,105.68,105.64,359.0]
[1744206646270,0.06673036,105.68,105.65,0.06367539]
[1744206649076,9.53793036,105.68,105.65,0.06367539]
[1744206649281,0.06673036,105.68,105.65,0.06367539]
[1744206649667,0.06673036,105.68,105.66,50.27765668]
[1744206650573,0.06673036,105.68,105.65,0.06367539]
[1744206651371,499.84,105.79,105.66,50.27765668]
[1744206651574,508.9424,105.79,105.69,50.27765668]
[1744206651770,508.9424,105.79,105.69,409.27765668]
[1744206652163,508.9424,105.79,105.69,485.49765668]
[1744206652380,508.9424,105.79,105.71,50.27765668]
[1744206652671,0.071677,105.75,105.73,0.07113316]
[1744206653078,0.071677,105.75,105.69,359.0]
[1744206653262,0.071677,105.75,105.69,50.27765668]
[1744206653765,0.071677,105.75,105.71,50.27765668]
[1744206653964,0.071677,105.75,105.71,409.27765668]
[1744206654377,0.071677,105.75,105.72,0.07273063]
[1744206654572,59.81715668,105.77,105.66,126.49765668]
[1744206654880,0.07195695,105.75,105.72,0.06523908]
[1744206655178,9.4654,105.73,105.72,0.06523908]
[1744206655772,9.4677,105.71,105.66,485.49765668]
[1744206655984,126.47765668,105.76,105.66,485.49765668]
[1744206656369,126.47765668,105.76,105.66,435.22]
[1744206656877,50.27765668,105.74,105.66,435.22]
[1744206657073,0.06496496,105.72,105.7,0.06225364]
[1744206657278,9.5395,105.77,105.7,50.27765668]
[1744206657579,0.0637355,105.72,105.7,0.06228322]
[1744206657774,126.47765668,105.75,105.63,1450.07765668]
[1744206657978,50.27765668,105.73,105.63,409.27765668]
[1744206658176,50.27765668,105.73,105.63,359.0]
[1744206658476,50.27765668,105.71,105.63,359.0]
[1744206658678,85.1988,105.7,105.59,409.27765668]
[1744206658980,9.4708,105.67,105.66,0.07041055]
[1744206659171,50.27765668,105.69,105.59,409.27765668]
[1744206659678,50.27765668,105.65,105.55,50.27765668]
[1744206659880,4.4779,105.64,105.54,76.2]
[1744206660077,4.4779,105.64,105.55,50.27765668]
[1744206660283,0.06810747,105.6,105.58,0.0712286]
[1744206660777,50.27765668,105.59,105.52,461.39387429]
[1744206660981,50.27765668,105.57,105.52,102.39387429]
[1744206661180,4.4255,105.56,105.49,50.27765668]
[1744206661477,50.27765668,105.68,105.55,50.27765668]
[1744206661683,580.4655,105.69,105.59,50.27765668]
[1744206661979,0.06720477,105.63,105.6,126.55889829]
[1744206662180,4.4255,105.69,105.62,50.27765668]
[1744206662384,9.3869,105.72,105.65,50.27765668]
[1744206662886,9.3869,105.72,105.65,126.49765668]
[1744206663077,6.3171107,105.73,105.67,50.27765668]
[1744206663283,1.8916107,105.73,105.69,50.27765668]
[1744206663475,0.0715243,105.7,105.69,359.0]
[1744206663674,17.77166752,105.81,105.69,535.77531336]
[1744206663877,17.77166752,105.81,105.74,50.27765668]
[1744206664083,17.77166752,105.81,105.72,50.27765668]
[1744206664586,17.77166752,105.81,105.74,50.27765668]
[1744206664782,17.77166752,105.81,105.72,409.27765668]
[1744206664984,0.06307137,105.78,105.75,0.06436379]
[1744206665375,50.27765668,105.77,105.68,471.27765668]
[1744206665684,50.27765668,105.76,105.65,50.27765668]
[1744206665880,50.27765668,105.72,105.64,359.0]
[1744206666185,4.5491,105.75,105.65,50.27765668]
[1744206666381,4.5491,105.75,105.68,50.27765668]
[1744206666582,4.5491,105.75,105.66,76.22]
[1744206666583,4.5491,105.75,105.66,359.0]
[1744206666883,0.06063668,105.71,105.69,0.06740115]
[1744206667976,0.06063668,105.71,105.63,359.0]
[1744206668489,76.22,105.73,105.65,50.27765668]
[1744206668679,76.22,105.73,105.63,409.27765668]
[1744206668879,76.22,105.73,105.63,359.0]
[1744206669081,0.06900457,105.69,105.67,0.06049772]
[1744206669784,499.84,105.81,105.67,485.1781544]
[1744206669975,9.4642,105.75,105.69,50.27765668]
[1744206670397,50.27765668,105.78,105.69,50.27765668]
[1744206670583,84.9402,105.79,105.69,50.27765668]
[1744206670888,50.27765668,105.78,105.67,485.11765668]
[1744206671092,9.4645,105.74,105.73,5.963e-05]
[1744206671388,85.3045,105.74,105.73,5.963e-05]
[1744206671885,145.04215668,105.74,105.73,5.963e-05]
[1744206672593,135.57765668,105.74,105.63,409.27765668]
[1744206672791,75.84,105.74,105.63,409.27765668]
[1744206673288,4.6807,105.74,105.65,50.27765668]
[1744206673588,9.4659,105.73,105.65,50.27765668]
[1744206673791,0.06844251,105.71,105.68,0.0622477]
[1744206673987,0.06844251,105.71,105.68,359.0622477]
[1744206674196,80.5207,105.78,105.68,359.0]
[1744206674490,50.27765668,105.74,105.63,50.27765668]
[1744206674695,9.474,105.64,105.62,359.0]
[1744206674887,126.11765668,105.68,105.58,50.27765668]
[1744206675087,126.11765668,105.68,105.58,409.27765668]
[1744206675282,126.11765668,105.68,105.58,359.0]
[1744206675593,50.27765668,105.66,105.58,359.0]
[1744206675783,9.1529,105.65,105.58,359.0]
[1744206675989,9.3312,105.69,105.6,50.27765668]
[1744206676192,0.06054789,105.63,105.6,50.34965533]
[1744206676487,0.06827622,105.63,105.6,409.34141778]
[1744206676689,0.06827622,105.63,105.6,0.0637611]
[1744206678188,50.3459329,105.63,105.6,0.0637611]
[1744206678387,50.27765668,105.61,105.52,359.0]
[1744206678793,89.4688,105.62,105.52,359.0]
[1744206679092,23.0842,105.62,105.53,50.27765668]
[1744206679287,9.1098,105.62,105.55,50.27765668]
[1744206679489,0.06635745,105.59,105.56,75.92503183]
[1744206681396,0.06635745,105.59,105.57,50.27765668]
[1744206681597,9.1098,105.66,105.57,409.27765668]
[1744206681897,78.81765668,105.75,105.57,409.27765668]
[1744206681898,9.4668,105.72,105.63,50.27765668]
[1744206682093,9.1987,105.74,105.65,50.27765668]
[1744206682288,9.1987,105.74,105.64,75.88]
[1744206682489,9.1987,105.74,105.65,62.0]
[1744206682789,0.07247152,105.7,105.68,0.07092445]
[1744206683192,52.19248617,105.76,105.69,126.15765668]
[1744206683397,52.09408617,105.76,105.73,50.27765668]
[1744206683594,52.09408617,105.76,105.74,75.88]
[1744206684093,97.22231627,105.77,105.75,100.55531336]
[1744206684297,0.06155668,105.76,105.74,434.94669698]
[1744206684499,97.22231627,105.77,105.75,50.27765668]
[1744206684693,157.32482747,105.79,105.78,50.27765668]
[1744206685198,13.03042919,105.86,105.78,469.01531336]
[1744206685400,13.03042919,105.86,105.84,50.27765668]
[1744206685587,13.03042919,105.86,105.82,50.27765668]
[1744206685791,0.06102775,105.83,105.82,50.27765668]
[1744206685992,0.06102775,105.83,105.81,0.06860358]
[1744206686402,0.06102775,105.83,105.82,59.73495668]
[1744206686589,0.06102775,105.83,105.82,50.27765668]
[1744206686792,0.06102775,105.83,105.81,0.06860358]
[1744206687093,0.06102775,105.83,105.82,59.73495668]
[1744206687299,13.03042919,105.86,105.82,50.27765668]
[1744206687599,13.03042919,105.86,105.84,59.73265668]
[1744206687792,13.03042919,105.86,105.82,409.27765668]
[1744206688301,13.03042919,105.86,105.82,359.0]
[1744206688601,0.06800929,105.85,105.83,0.06434112]
[1744206689200,9.4555,105.84,105.83,0.06434112]
[1744206690002,0.06800929,105.85,105.83,4.112e-05]
[1744206690501,9.4555,105.84,105.83,4.112e-05]
[1744206691695,9.52280929,105.85,105.83,4.112e-05]
[1744206691896,0.06800929,105.85,105.83,4.112e-05]
[1744206692493,0.06800929,105.85,105.83,50.2776978]
[1744206692698,0.06800929,105.85,105.84,78.42]
[1744206692906,0.06800929,105.85,105.84,437.42]
[1744206693203,9.29e-06,105.85,105.84,437.42]
[1744206693407,50.27765668,106.0,105.85,359.0]
[1744206693700,9.4448,105.96,105.91,50.27765668]
[1744206694004,9.2454,105.99,105.93,50.27765668]
[1744206694203,9.4436,105.98,105.93,50.27765668]
[1744206694396,9.2454,105.99,105.91,409.27765668]
[1744206694707,9.4462,105.95,105.94,0.06291797]
[1744206695704,0.06370542,105.97,105.94,0.06291797]
[1744206696106,9.4457,105.95,105.94,0.06291797]
[1744206696908,0.06370542,105.97,105.94,0.06291797]
[1744206697206,9.4457,105.95,105.94,0.06291797]
[1744206697700,0.06370542,105.97,105.94,0.06291797]
[1744206698208,50.27765668,106.04,105.94,0.06291797]
[1744206698209,18.8657,106.1,105.95,180.89531336]
[1744206698499,9.0076,106.09,106.0,50.27765668]
[1744206698804,499.1,106.13,106.04,50.27765668]
[1744206699003,8.9351,106.12,106.04,50.27765668]
[1744206699197,4.7477,106.17,106.08,50.27765668]
[1744206699392,0.06842668,106.09,106.07,0.06463228]
[1744206699592,0.06842668,106.09,106.08,50.27765668]
[1744206699806,4.4625,106.16,106.09,9.4331]
[1744206699999,0.06280043,106.1,106.07,359.07201125]
[1744206700307,50.27765668,106.15,106.07,359.0]
[1744206700500,0.06670972,106.1,106.07,359.06404345]
[1744206700695,9.72e-06,106.1,106.09,59.71095668]
[1744206700902,13.817,106.24,106.09,100.55531336]
[1744206701210,50.27765668,106.2,106.09,50.27765668]
[1744206701394,13.817,106.24,106.11,50.27765668]
[1744206701595,13.817,106.24,106.05,549.03765668]
[1744206701808,50.27765668,106.22,106.06,1.73253875]
[1744206701994,0.0718699,106.16,106.13,0.07187222]
[1744206702198,0.0718699,106.16,106.15,9.4279]
[1744206702394,1.88288457,106.22,106.15,100.55531336]
[1744206702597,154.04433569,106.27,106.15,50.27765668]
[1744206702806,154.04433569,106.27,106.18,50.27765668]
[1744206703103,154.04433569,106.27,106.2,50.27765668]
[1744206703301,154.04433569,106.27,106.18,9.425]
[1744206703504,0.06784105,106.25,106.22,0.06924695]
[1744206703809,50.27765668,106.33,106.22,59.69925668]
[1744206704010,0.06020327,106.25,106.24,50.27765668]
[1744206704200,9.4118,106.34,106.25,50.27765668]
[1744206704399,548.57765668,106.4,106.25,359.0]
[1744206704400,498.3,106.4,106.25,359.0]
[1744206704699,9.4173,106.27,106.23,50.27765668]
[1744206704897,50.27765668,106.36,106.25,50.27765668]
[1744206705109,63.82655668,106.34,106.23,50.27765668]
[1744206705306,50.27765668,106.32,106.21,50.27765668]
[1744206705502,50.27765668,106.28,106.17,50.27765668]
[1744206705807,4.4208,106.27,106.18,50.27765668]
[1744206706112,54.69845668,106.27,106.16,409.27765668]
[1744206706402,4.4208,106.27,106.2,50.27765668]
[1744206706604,0.07048913,106.23,106.2,0.06797483]
[1744206706909,0.07048913,106.23,106.16,418.70455668]
[1744206707102,0.07048913,106.23,106.16,359.0]
[1744206707303,9.4226,106.21,106.2,0.06315814]
[1744206707609,50.33740869,106.21,106.09,50.27765668]
[1744206707917,50.27765668,106.19,106.08,50.27765668]
[1744206708102,548.21765668,106.19,106.08,50.27765668]
[1744206708408,50.27765668,106.17,106.05,409.27765668]
[1744206708618,497.94,106.19,106.07,50.27765668]
[1744206708802,9.4297,106.13,106.12,0.0636616]
[1744206709000,50.27765668,106.14,106.05,359.0]
[1744206709310,4.7743,106.14,106.05,409.27765668]
[1744206709608,4.7743,106.14,106.07,50.27765668]
[1744206709907,89.36259672,106.22,106.11,50.27765668]
[1744206710110,9.4646,106.21,106.11,50.27765668]
[1744206710312,0.06478085,106.12,106.09,50.34377849]
[1744206710508,9.4646,106.21,106.11,50.27765668]
[1744206710713,50.27765668,106.2,106.09,359.0]
[1744206711010,50.27765668,106.2,106.1,50.27765668]
[1744206711403,18.8362,106.27,106.12,50.27765668]
[1744206711710,50.27765668,106.2,106.09,359.0]
[1744206712106,50.27765668,106.2,106.1,50.27765668]
[1744206712507,9.4304,106.13,106.09,359.0]
[1744206712804,50.27765668,106.2,106.09,359.0]
[1744206713001,497.82,106.22,106.1,59.71005668]
[1744206713206,0.06349792,106.12,106.1,0.06592552]
[1744206713609,4.7324,106.18,106.09,359.0]
[1744206713811,0.0650449,106.12,106.1,0.06448977]
[1744206714318,50.27765668,106.18,106.09,359.0]
[1744206714611,0.06833643,106.12,106.03,409.27765668]
[1744206714816,4.7205,106.13,106.03,409.27765668]
[1744206715207,9.4339,106.09,106.03,409.27765668]
[1744206715415,4.7205,106.13,106.05,50.27765668]
[1744206715815,4.7205,106.13,106.06,9.4351]
[1744206716109,0.06893941,106.1,106.08,0.06931518]
[1744206717411,9.4333,106.09,106.08,0.06931518]
[1744206718421,0.06893941,106.1,106.08,0.06931518]
[1744206718910,0.06893941,106.1,106.09,50.27765668]
[1744206719106,0.06893941,106.1,106.08,0.06931518]
[1744206720421,0.00845995,106.1,106.09,59.71095668]
[1744206721021,4.7205,106.17,106.09,59.69765668]
[1744206721310,4.7205,106.17,106.09,409.27765668]
[1744206721518,4.7205,106.17,106.09,359.0]
[1744206721908,54.99815668,106.17,106.09,359.0]
[1744206722121,9.4297,106.13,106.12,0.06374042]
[1744206722811,9.49689981,106.14,106.12,0.06374042]
[1744206723204,0.06769981,106.14,106.12,0.06374042]
[1744206723403,9.4297,106.13,106.12,0.06374042]
[1744206723610,50.27765668,106.13,106.05,359.0]
[1744206723819,9.48769981,106.14,106.0,1090.73788952]
[1744206723820,50.27765668,106.11,106.0,360.64023284]
[1744206724020,50.27765668,106.09,106.0,359.0]
[1744206724215,50.27765668,106.07,105.95,360.64092892]
[1744206724522,9.4428,105.99,105.95,359.0]
[1744206724720,50.27765668,106.05,105.95,409.27765668]
[1744206725015,0.06325177,106.02,106.0,50.34283882]
[1744206725222,548.05765668,106.13,106.0,409.27765668]
[1744206725523,0.06925618,106.02,106.01,50.27765668]
[1744206725724,548.05765668,106.13,106.0,359.0]
[1744206725725,50.27765668,106.11,106.0,359.0]
[1744206726022,0.06878816,106.03,106.0,0.06418383]
[1744206726318,50.27765668,106.08,105.96,907.05765668]
[1744206726508,0.06894306,106.03,106.0,0.06413223]
[1744206727014,9.50794306,106.03,106.0,0.06413223]
[1744206727216,0.06894306,106.03,106.0,0.06413223]
[1744206727817,0.06894306,106.03,106.01,50.27765668]
[1744206728521,0.06894306,106.03,106.0,359.06413223]
[1744206728710,0.06894306,106.03,106.01,50.27765668]
[1744206729223,9.0262,106.12,106.01,418.71765668]
[1744206729420,9.0262,106.12,106.06,50.27765668]
[1744206729621,9.0262,106.12,106.02,409.27765668]
[1744206730020,9.0262,106.12,106.03,9.4385]
[1744206730220,50.27765668,106.11,106.02,359.0]
[1744206730523,0.07005015,106.09,106.06,0.06628162]
[1744206730712,50.34770683,106.09,106.06,8.162e-05]
[1744206730916,4.4607,106.08,106.02,359.0]
[1744206731225,9.4366,106.06,106.0,50.27765668]
[1744206731520,54.73835668,106.08,106.0,9.4408]
[1744206731828,4.4607,106.08,105.98,409.27765668]
[1744206732120,0.06795606,106.05,106.04,59.71535668]
[1744206732321,0.06795606,106.05,106.03,0.06135995]
[1744206732518,9.0262,106.12,106.04,50.27765668]
[1744206732725,0.06380466,106.05,106.04,409.27765668]
[1744206732922,0.06380466,106.05,106.0,50.27765668]
[1744206732923,59.30385668,106.12,106.0,50.27765668]
[1744206733121,50.27765668,106.1,106.03,0.07172937]
[1744206733321,0.07130201,106.06,106.03,0.07172937]
[1744206733623,0.07143639,106.06,106.03,50.34968565]
[1744206734223,0.07143639,106.06,106.03,0.07202897]
[1744206734532,3.639e-05,106.06,106.05,50.27765668]
[1744206734726,3.639e-05,106.06,106.05,59.71445668]
[1744206734933,3.639e-05,106.06,106.05,69.13445668]
[1744206735122,3.639e-05,106.06,106.05,59.71445668]
[1744206736729,4.4632,106.12,106.05,418.69765668]
[1744206736931,9.0331,106.19,106.1,100.55531336]
[1744206737227,9.0331,106.19,106.13,50.27765668]
[1744206737431,9.0331,106.19,106.1,409.27765668]
[1744206737827,52.15983247,106.26,106.17,9.4255]
[1744206738028,13.8576,106.25,106.18,50.27765668]
[1744206738428,0.07087022,106.23,106.22,9.4213]
[1744206738828,64.35625668,106.31,106.22,9.4213]
[1744206739035,9.4222,106.22,106.2,359.06069891]
[1744206739233,0.06978988,106.24,106.18,50.27765668]
[1744206739234,50.27765668,106.29,106.18,50.27765668]
[1744206739427,497.76,106.28,106.2,0.07215971]
[1744206739623,0.06411324,106.22,106.16,50.27765668]
[1744206739924,50.27765668,106.27,106.23,0.06858538]
[1744206740133,497.76,106.28,106.18,50.27765668]
[1744206740330,0.07198,106.26,106.22,50.27765668]
[1744206740529,0.07198,106.26,106.25,9.4191]
[1744206740735,1.88129056,106.31,106.25,409.27765668]
[1744206740935,13.7025,106.38,106.28,50.27765668]
[1744206741127,63.98015668,106.38,106.28,50.27765668]
[1744206741324,13.7025,106.38,106.28,50.27765668]
[1744206741532,50.27765668,106.36,106.25,359.0]
[1744206741733,497.76,106.37,106.25,359.0]
[1744206741938,548.03765668,106.37,106.26,50.27765668]
[1744206742134,0.06773247,106.32,106.29,0.07012746]
[1744206742434,9.48083247,106.32,106.29,0.07012746]
[1744206742631,0.06773247,106.32,106.26,50.27765668]
[1744206742829,0.06773247,106.32,106.29,0.05986267]
[1744206743236,15.58255264,106.38,106.29,0.05986267]
[1744206743427,0.0615943,106.32,106.29,50.33751935]
[1744206743739,1.88005264,106.38,106.3,50.27765668]
[1744206744032,1.88005264,106.38,106.3,359.0]
[1744206744247,1.88005264,106.38,106.3,409.27765668]
[1744206744531,4.7608,106.43,106.32,50.27765668]
[1744206744729,50.27765668,106.42,106.32,50.27765668]
[1744206744930,9.4075,106.38,106.36,0.06318028]
[1744206745131,0.0595974,106.39,106.36,0.06318028]
[1744206745325,0.0595974,106.39,106.32,409.27765668]
[1744206745629,50.27765668,106.4,106.36,0.07220392]